Cogmind - Beta 11 @@@ ROGUE MODE // 2022.04.12 @ 18:05:22 Player: the cat Result: Heading to fleet! Performance ------------- Evolutions (9) 4500 Regions Visited (32) 6400 Robots Destroyed (248) 1240 Value Destroyed (9630) 9630 Prototype IDs (84) 1680 Alien Tech Used (15) 3000 Bonus (28833) 28833 TOTAL SCORE: 55283 Bonus ------- Triggered High Security 500 High Alert Combat Kills 1651 Follower Combat Kills 622 Met Data Miner 300 Met Imprinter 300 Met Zhirov 300 Met Warlord at Base 500 MAIN.C Attacked Warlord 500 Warlord Defense Kill 1250 Used Core Reset Matrix 3000 Met Warlord at Research 2000 Hacked God Mode 5000 Scanned by Researcher 500 Destroyed MAIN.C Guards 500 Met MAIN.C 5000 Destroyed MAIN.C Shell 5000 Win 3000 Friendly Fire -1090 Cogmind --------- Core Integrity 73/1850 Matter 132/300 Energy 1326/1390 System Corruption 0% Temperature Cool (3) Movement Flying (108) Ox1 Location To Fleet Rendezvous Parts ------- > --- POWER (1) -------- Light Quantum Reactor > --- PROPULSION (9) --- Nuclear Pulse Array Improved Diametric Drive Impulse Thruster Array > --- UTILITY (12) ----- Medium Storage Unit Experimental Energy Well Experimental Energy Well Spectral Analyzer Improved Armor Integrity Analyzer Improved Force Booster Graphene Brace > --- WEAPON (3) ------- Cooled Nova Cannon Plasma Lance > --- INVENTORY (14) --- Advanced Sensor Array Improved Reaction Control System High-powered Transdimensional Reconstructor High-powered Transdimensional Reconstructor Peak State ------------ > --- POWER ------------ Improved Fusion Compressor > --- PROPULSION ------- Q-thruster Improved Diametric Drive Improved Diametric Drive Impulse Thruster Array Impulse Thruster Array Improved Q-thruster Cooled Q-thruster > --- UTILITY ---------- Power Amplifier Advanced Power Amplifier Large Storage Unit Spectral Analyzer Experimental Signal Interpreter Advanced Transmission Jammer Centrium Light Armor Plating Medium Regenerative Plating Graphene Brace Improved Hacking Suite Microwarp Drive > --- WEAPON ----------- Sigix Broadsword Force Lance > --- INVENTORY -------- Graviton Reactor 2N-1CE's Frost Array Medium Storage Unit Experimental Energy Well Experimental Energy Well Structural Scanner Advanced Sensor Array Advanced ECM Suite Antimissile System Antimissile System Transdimensional Reconstructor Transdimensional Reconstructor High-powered Transdimensional Reconstructor High-powered Transdimensional Reconstructor Integrity Redistributor Cooled Nova Cannon Improved Potential Cannon Plasma Lance [Rating: 231] Favorites ----------- Power Cooled Ion Engine Engine Cooled Ion Engine Power Core Light Nuclear Core Reactor Graviton Reactor Propulsion Improved Flight Unit Treads Light Treads Leg Aluminum Leg Wheel Compact Wheel Flight Unit Improved Flight Unit Utility Structural Scanner Device Structural Scanner Storage Medium Storage Unit Processor Advanced Signal Interpreter Hackware Hacking Suite Protection Experimental Propulsion Shielding Artifact Microwarp Drive Weapon Improved Light Cannon Energy Gun Improved Medium Laser Energy Cannon Advanced Beam Cannon Ballistic Gun Autogun Ballistic Cannon Improved Light Cannon Launcher Concussive RPG Special Weapon Improved Remote Datajack Impact Weapon Thunder Hammer Slashing Weapon Scythe Piercing Weapon Plasma Lance Special Melee Weapon Datajack Build | -11 -10 -10 -9 -9 -8 -7 -7 -7 -7 -6 -6 -6 -6 -6 -5 -5 -5 -5 -5 -4 -4 -4 -4 -4 -3 -3 -3 -2 -2 -2 -1 -1 ------- Run | Scr Mat Min Mat Min Mat Fac Low Low Zio Pro Fac Low Low Dat Pro Fac Upp Upp Zhi Pro Fac Upp Upp War Pro Res Tes Res Qua Sec Acc Com Slots Evolved 18 | . . . 2 . 2 2 . . . . 2 . . . . 2 . . . . 2 . . . . 2 . 2 . . 2 . Power . | . . . . . . . . . . . . . . . . . . . . . . . . . . . . . . . . . Propulsion 7 | . . . 1 . 1 . . . . . 1 . . . . 1 . . . . . . . . . 1 . 1 . . 1 . Utility 10 | . . . 1 . 1 2 . . . . 1 . . . . 1 . . . . 2 . . . . 1 . 1 . . . . Weapon 1 | . . . . . . . . . . . . . . . . . . . . . . . . . . . . . . . 1 . Parts Attached 490 | 6 5 5 19 4 45 18 3 . 15 . 5 . 2 . 7 12 . 4 7 2 34 2 2 23 . 24 58 36 38 24 11 79 Power 34 | 1 . 1 2 . 3 1 . . . . . . . . . 1 . 2 . 1 2 . . 1 . 4 2 . 3 1 1 8 Engine 10 | 1 . 1 2 . 2 . . . . . . . . . . . . . . . 1 . . . . 1 . . . . . 2 Core 8 | . . . . . 1 1 . . . . . . . . . 1 . 2 . 1 1 . . . . . . . . . . 1 Reactor 16 | . . . . . . . . . . . . . . . . . . . . . . . . 1 . 3 2 . 3 1 1 5 Propulsion 75 | 2 . 3 5 . 18 5 . . . . 1 . . . . 2 . 1 2 . 2 . . 3 . 5 7 5 6 3 1 4 Treads 15 | 1 . 1 2 . 11 . . . . . . . . . . . . . . . . . . . . . . . . . . . Leg 8 | . . . . . 6 . . . . . . . . . . . . . . . . . . 1 . . 1 . . . . . Wheel 6 | 1 . 2 3 . . . . . . . . . . . . . . . . . . . . . . . . . . . . . Hover . | . . . . . . . . . . . . . . . . . . . . . . . . . . . . . . . . . Flight 46 | . . . . . 1 5 . . . . 1 . . . . 2 . 1 2 . 2 . . 2 . 5 6 5 6 3 1 4 Utility 210 | 1 3 1 7 1 9 7 . . 8 . 4 . 2 . 5 5 . 1 4 1 16 . . 9 . 8 20 19 19 11 6 43 Device 100 | . . . 2 . 3 4 . . 5 . 2 . . . 2 3 . . 1 . 6 . . 5 . 2 12 13 11 7 1 21 Storage 19 | 1 3 . . . . 1 . . . . . . . . . . . . 1 . 1 . . 1 . 1 1 1 . 2 . 6 Processor 19 | . . . 1 . 2 1 . . 3 . 1 . . . . . . . . 1 . . . . . . 1 2 3 . 1 3 Hackware 13 | . . . . . 1 . . . . . 1 . . . 1 1 . . 1 . 2 . . . . 2 . . . . 1 3 Protection 54 | . . 1 4 1 3 1 . . . . . . 2 . 2 1 . 1 1 . 7 . . 3 . 3 6 3 5 2 1 7 Artifact 5 | . . . . . . . . . . . . . . . . . . . . . . . . . . . . . . . 2 3 Weapon 171 | 2 2 . 5 3 15 5 3 . 7 . . . . . 2 4 . . 1 . 14 2 2 10 . 7 29 12 10 9 3 24 Energy Gun 12 | . . . 1 . 2 . . . . . . . . . . . . . . . . . . 7 . 2 . . . . . . Energy Cannon 53 | . . . . 1 5 . . . . . . . . . . 2 . . 1 . 4 . . . . 3 11 5 4 5 3 9 Ballistic Gun 10 | 2 1 . 1 . 5 . . . . . . . . . . . . . . . . . . 1 . . . . . . . . Ballistic Cannon 10 | . 1 . 3 1 . . . . . . . . . . . . . . . . . 2 2 . . . 1 . . . . . Launcher 12 | . . . . . 2 3 1 . 2 . . . . . . . . . . . . . . . . . 1 . . . . 3 Special Weapon 17 | . . . . . . . . . 3 . . . . . 1 2 . . . . 7 . . . . . . . 3 1 . . Impact Weapon 4 | . . . . . . . 1 . . . . . . . . . . . . . 3 . . . . . . . . . . . Slashing Weapon 36 | . . . . 1 1 2 1 . 2 . . . . . 1 . . . . . . . . 1 . 2 11 6 3 3 . 2 Piercing Weapon 16 | . . . . . . . . . . . . . . . . . . . . . . . . 1 . . 5 . . . . 10 Special Melee Weapon 1 | . . . . . . . . . . . . . . . . . . . . . . . . . . . . 1 . . . . Unidentified Prototypes 45 | . . . 3 . 2 . . . 5 . . . . . 1 . . . 2 . 2 . . 10 . 1 13 1 4 1 . . Corrupted Parts 2 | . . . . . . . . . . . . . . . . . . . . . 1 . . 1 . . . . . . . . System Corruption 11 | . . . . . . . . . . . . . . . . . . . . . 2 . . 9 . . . . . . . . Parts Lost 58 | . . 1 2 1 12 . . . . . 1 . . 1 . 1 . 2 . 1 10 . . . . 2 1 . . 2 3 18 Power 12 | . . . . . 1 . . . . . . . . . . . . . . 1 3 . . . . 1 . . . 1 1 4 Propulsion 15 | . . 1 . . 5 . . . . . . . . 1 . . . 2 . . 1 . . . . . . . . . . 5 Utility 23 | . . . 1 . 4 . . . . . 1 . . . . 1 . . . . 4 . . . . 1 1 . . 1 2 7 Weapon 8 | . . . 1 1 2 . . . . . . . . . . . . . . . 2 . . . . . . . . . . 2 Highest Loss Streak 9 | . . 1 1 1 5 . . . . . 1 . . 1 . 1 . 2 . 1 3 . . . . 2 1 . . 1 2 9 To Critical Strikes . | . . . . . . . . . . . . . . . . . . . . . . . . . . . . . . . . . Average Slot Usage (%) 93 | . 93 99 99 99 97 92 99 100 99 100 95 93 93 97 86 87 100 82 91 100 95 89 89 92 100 90 89 90 90 85 80 79 Engine 4 | . 14 14 11 11 8 . . . . . . . . . . . . . . . 1 . . . . . . . . . . 2 Core 1 | . . . . . . 7 7 7 7 7 6 6 6 6 6 5 5 5 5 5 2 . . . . . . . . . . . Treads 7 | . 14 6 11 11 29 . . . . . . . . . . . . . . . . . . . . . . . . . . . Wheel 5 | . 14 21 21 22 1 . . . . . . . . . . . . . . . . . . . . . . . . . . . Flight 16 | . . . . . . 30 30 30 30 30 33 33 33 32 26 26 35 23 31 35 31 31 31 30 31 24 23 25 25 26 28 27 Device 10 | . . . 9 11 9 12 15 15 14 15 13 13 12 5 5 6 11 9 2 5 10 5 5 8 10 9 17 19 20 21 19 13 Storage 8 | . 21 21 11 11 9 7 7 7 7 7 6 6 6 6 6 5 5 5 5 5 5 10 10 8 5 4 4 4 4 5 5 6 Processor 7 | . . . . . 3 14 15 15 15 15 13 13 13 13 13 11 11 11 11 11 10 10 10 10 10 9 9 8 8 8 9 10 Hackware 6 | . . . . . 5 7 7 7 7 7 7 6 6 6 7 15 11 11 11 11 14 15 15 15 15 18 17 5 4 4 . . Protection 7 | . . 6 12 11 7 2 . . . . . . 1 13 6 4 5 5 12 11 9 10 10 7 10 8 2 13 13 8 7 7 Energy Cannon 1 | . . . . 6 7 . . . . . . . . . . . . . 2 5 . . . . . 1 . . . . . . Ballistic Gun 2 | . 24 14 . . 6 . . . . . . . . . . . . . . . . . . . . . . . . . . . Ballistic Cannon 3 | . 3 14 21 14 . . . . . . . . . . . . . . . . . . . . . . . . . . . . Slashing Weapon 2 | . . . . 1 . 6 6 7 7 7 6 6 6 5 6 5 5 5 5 5 4 . . . 5 2 3 3 1 3 4 3 Naked Turns . | . . . . . . . . . . . . . . . . . . . . . . . . . . . . . . . . . Heaviest Build 107 | 13 95 95 107 104 107 20 20 20 26 20 20 20 24 24 21 25 25 25 32 32 33 29 29 41 34 58 61 55 62 62 73 69 Greatest Support 82 | 20 16 26 32 32 82 20 20 20 20 20 26 20 26 26 21 34 27 34 33 33 35 35 35 35 41 52 58 59 63 61 72 69 Greatest Overweight (x) 9 | . 5 9 5 3 6 . . . 1 . . . . . . . . 1 . . . 9 . 9 . 1 1 . 1 1 1 1 Average Overweight (x) . | . 1 4 3 3 1 . . . . . . . . . . . . . . . . . . . . . . . . . . . Largest Inventory Capacity 25 | 8 25 25 25 25 25 25 10 10 10 10 10 10 10 10 10 10 10 10 10 10 10 10 10 10 10 15 15 15 15 19 19 19 Average Capacity 17 | 6 15 25 25 25 25 10 10 10 10 10 10 10 10 10 10 10 10 10 10 10 10 10 10 10 10 12 15 15 15 16 19 17 Most Carried 25 | 4 11 16 25 25 25 16 10 10 10 10 9 9 9 10 10 10 10 10 10 10 10 10 10 10 10 15 15 15 15 19 19 19 Average Carried 15 | 2 8 13 23 24 23 9 10 10 9 10 8 9 8 8 9 9 10 9 9 9 9 9 9 9 10 11 14 14 14 16 17 16 Final Capacity 25 | 8 25 25 25 25 25 10 10 10 10 10 10 10 10 10 10 10 10 10 10 10 10 10 10 10 10 15 15 15 15 19 19 14 Final Carried 25 | 4 11 16 25 24 16 10 10 10 10 10 9 9 8 10 9 10 10 10 10 10 10 10 10 10 10 15 15 15 15 19 18 4 Class Distribution -------------------- 31% | Mutant 14% | Scavenger-Scout 8% | Scavenger-Mutant 8% | Hacker-Scout 6% | Hacker-Sprinter 5% | Scavenger-Ninja 3% | Hacker-Mutant 3% | Alien-Ninja 3% | Alien-Sprinter Dominant Class ---------------- Mutant | -10/Materials Mutant | -10/Mines Mutant | -9/Materials Mutant | -9/Mines Scavenger-Mutant | -8/Materials Scavenger-Scout | -7/Factory Scavenger-Scout | -7/Lower Caves Scavenger-Scout | -7/Lower Caves Scavenger-Scout | -7/Zion Scavenger-Scout | -6/Proximity Caves Scavenger-Scout | -6/Factory Scavenger-Scout | -6/Lower Caves Scavenger-Scout | -6/Lower Caves Scavenger-Sprinter | -6/Data Miner Scout | -5/Proximity Caves Hacker-Scout | -5/Factory Hacker-Scout | -5/Upper Caves Hacker-Scout | -5/Upper Caves Hacker-Assassin | -5/Zhirov Hacker-Scout | -4/Proximity Caves Hacker-Scout | -4/Factory Hacker-Mutant | -4/Upper Caves Hacker-Sprinter | -4/Upper Caves Hacker-Mutant | -4/Warlord Hacker-Sprinter | -3/Proximity Caves Wizard-Sprinter | -3/Research Wizard-Ninja | -3/Testing Scavenger-Ninja | -2/Research Scavenger-Ninja | -2/Quarantine Alien-Ninja | -2/Section 7 Alien-Ninja | -1/Access Alien-Sprinter | -1/Command Resources | -11 -10 -10 -9 -9 -8 -7 -7 -7 -7 -6 -6 -6 -6 -6 -5 -5 -5 -5 -5 -4 -4 -4 -4 -4 -3 -3 -3 -2 -2 -2 -1 -1 ----------- Run | Scr Mat Min Mat Min Mat Fac Low Low Zio Pro Fac Low Low Dat Pro Fac Upp Upp Zhi Pro Fac Upp Upp War Pro Res Tes Res Qua Sec Acc Com Matter Collected 7118 | 222 279 369 732 275 994 190 85 25 47 103 40 10 . . 40 167 . . 100 40 293 106 71 232 4 245 630 342 410 236 229 602 Remotely 579 | . . . . . 579 . . . . . . . . . . . . . . . . . . . . . . . . . . . Salvage Created 11249 | . 266 210 1107 259 1821 161 . 42 . 147 30 . . 21 42 370 . . 281 . 505 109 265 409 . 411 1296 297 657 765 231 1547 Parts 571 | . 18 21 81 19 95 18 . 2 . 1 3 . . 2 8 35 . . 1 . 24 3 . 21 . 23 43 16 25 32 6 74 Haulers Intercepted 20 | . . . 5 . 6 1 . . . . . . . . . 1 . . . . 1 . . . . 2 1 1 1 . 1 . Recyclers Shooed 3 | . . . . . . . . . . . . . . . . . . . . . . . . . . . 1 . 1 . . 1 Parts Field Recycled . | . . . . . . . . . . . . . . . . . . . . . . . . . . . . . . . . . Retrieved Matter . | . . . . . . . . . . . . . . . . . . . . . . . . . . . . . . . . . Parts Self-Destructed 89 | . . . . . . . 6 . . 2 . . . . 4 . 3 . 1 . . 3 . 70 . . . . . . . . Prevented 13 | . . . . . . . . 1 . . . . . . . . . 1 . . . 1 . 9 1 . . . . . . . Kills | -11 -10 -10 -9 -9 -8 -7 -7 -7 -7 -6 -6 -6 -6 -6 -5 -5 -5 -5 -5 -4 -4 -4 -4 -4 -3 -3 -3 -2 -2 -2 -1 -1 ------- Run | Scr Mat Min Mat Min Mat Fac Low Low Zio Pro Fac Low Low Dat Pro Fac Upp Upp Zhi Pro Fac Upp Upp War Pro Res Tes Res Qua Sec Acc Com Combat Hostiles Destroyed 150 | . 8 11 24 10 29 . . . . . . . . . 5 5 . . . . 12 . . 9 . 1 2 . 6 7 . 21 Melee 19 | . . . . . . . . . . . . . . . . . . . . . 4 . . 1 . . 1 . . 2 . 11 Guns 31 | . 8 7 1 . 8 . . . . . . . . . . . . . . . . . . 6 . 1 . . . . . . Cannons 62 | . . 4 23 10 16 . . . . . . . . . . 1 . . . . 2 . . . . . 1 . . 3 . 2 AOE 33 | . . . . . 2 . . . . . . . . . 5 4 . . . . 5 . . 2 . . . . 6 2 . 7 Classes Destroyed 24 | . 2 1 4 1 3 . . 1 . . . . . . . 1 . . . . 1 2 1 2 . . 2 . . 1 . 2 Worker 7 | . . . . . . . . . . . . . . . . 2 . . . . . . . . . . 1 1 1 . . 2 Builder 13 | . . . 1 . . 1 . . . . 1 . . . . 8 . . . . 2 . . . . . . . . . . . Tunneler 4 | . . 2 . 1 1 . . . . . . . . . . . . . . . . . . . . . . . . . . . Hauler 20 | . . . 5 . 6 1 . . . . . . . . . 1 . . . . 1 . . . . 2 1 1 1 . 1 . Recycler 16 | . . . 1 . 2 . . . . . . . . . . . . . . . . . . . . . 7 1 3 . 1 1 Carrier 1 | . . . . . . . . . . . . . . . . . . . . . . . . . . . . . . 1 . . Minesweeper 1 | . . . . . . . . . . . . . . . . . . . . . . 1 . . . . . . . . . . Mechanic 1 | . . . . . . . . . . . . . . . . . . . . . . . . . . . . . . . . 1 Operator 8 | . . . . . 1 2 . . . . . . . . . . . . . . 1 . . . . 1 . 1 . 1 . 1 Watcher 19 | . . . . . 2 2 . . . . . . . . . 1 . . . . 2 . . . . 4 2 2 1 1 . 2 Swarmer 59 | . 3 9 2 4 7 . . . . . . . . . 5 5 . . . . 7 . . 1 . . . . 5 5 . 6 Grunt 41 | . 5 2 13 3 13 . . . . . . . . . . . . . . . . . . 3 . . 1 . 1 . . . Brawler 1 | . . . . 1 . . . . . . . . . . . . . . . . . . . . . . . . . . . . Protector 1 | . . . . . . . . . . . . . . . . . . . . . . . . 1 . . . . . . . . Researcher 5 | . . . . . . . . . . . . . . . . . . . . . . . . . . . 1 . 1 3 . . Sentry 27 | . . . 9 2 8 . . . . . . . . . . . . . . . 1 . . . . . . . . 3 . 4 Hunter 1 | . . . . . . . . . . . . . . . . . . . . . . . . . . . . . . . . 1 Programmer 15 | . . . . . . . . . . . . . . . . . . . . . 4 . . 3 . 1 . . . . . 7 Heavy 1 | . . . . . 1 . . . . . . . . . . . . . . . . . . . . . . . . . . . M Guard 1 | . . . . . . . . . . . . . . . . . . . . . . . . . . . . . . . . 1 Combat Programmer 2 | . . . . . . . . . . . . . . . . . . . . . . . . . . . . . . . . 2 Executioner 1 | . . . . . . . . . . . . . . . . . . . . . . . . 1 . . . . . . . . Protovariant X 1 | . . . . . . . . . . . . . . . . . . . . . . . . . . . 1 . . . . . Decomposer 2 | . . . . . . . . . . . . . . . . . . . . . . 2 . . . . . . . . . . Samaritan 7 | . . . . . . . . . . . . . . . . . . . . . . . 7 . . . . . . . . . Tinkerer 1 | . . . . . . . . 1 . . . . . . . . . . . . . . . . . . . . . . . . Mutant 1 | . . . . . . . . . . . . . . . . . . . . . . 1 . . . . . . . . . . Best Kill Streak 9 | . 3 5 6 3 5 1 . . . . 1 . . 1 5 9 . . . . 6 1 . 8 . 2 5 2 8 7 1 9 Combat Bots Only 8 | . 3 5 4 3 5 . . . . . . . . . 5 5 . . . . 5 . . 8 . 1 1 . 6 6 . 7 Max Kills in Single Turn 5 | . 1 1 2 1 1 1 . 1 . . 1 . . 1 4 5 . . . . 2 1 1 2 . 1 1 1 5 3 1 4 Gunslinging . | . . . . . . . . . . . . . . . . . . . . . . . . . . . . . . . . . Exploded 4 | . . . . . 1 . . . . . . . . . 4 3 . . . . 1 . . 1 . . . . 4 2 . 3 Melee 1 | . . . . . . . . . . . . . . . . . . . . . 1 . . 1 . . 1 . . 1 . 1 Uniques/NPCs Destroyed 2 | . . . . . . . . . . . . . . 1 . . . . . . . . . . . . . . . . . 1 Data Miner (-6/Data Miner) MAIN.C Shell (-1/Command) Combat | -11 -10 -10 -9 -9 -8 -7 -7 -7 -7 -6 -6 -6 -6 -6 -5 -5 -5 -5 -5 -4 -4 -4 -4 -4 -3 -3 -3 -2 -2 -2 -1 -1 -------- Run | Scr Mat Min Mat Min Mat Fac Low Low Zio Pro Fac Low Low Dat Pro Fac Upp Upp Zhi Pro Fac Upp Upp War Pro Res Tes Res Qua Sec Acc Com Damage Taken 15684 | . 297 271 649 356 2126 30 1 . . . 64 34 14 94 15 187 . 60 . 19 1670 45 17 199 44 223 255 449 87 1102 1185 6191 Core 2964 | . 79 29 143 50 233 10 . . . . 40 12 . 47 . 30 . . . . 426 . . 42 20 41 76 1 46 172 452 1015 Absorbed by Shields 121 | . . . . . . . . . . . . . . . . 5 . . . . . . . 104 . 12 . . . . . . Redirected to Shielding 938 | . . . . . . . . . . . . . . . . . . . . . 429 . . 77 7 19 . 246 16 104 40 . Regen/Repaired (Parts) 3012 | . . . . . . . . . . . . . . . . . . . . . 142 . . . . . 55 . 65 423 262 2065 Core Remaining (%) 72 | 100 . 56 . 51 57 . . . . 98 . . . . 88 . . . . 97 . . . . 57 . 91 . . 98 . 3 Volleys Fired 462 | . 28 22 65 24 132 4 3 . 3 . . . . . 2 5 1 . . . 12 1 7 24 . 13 31 14 16 17 6 32 Largest 2 | . 2 2 2 2 2 1 1 . 1 . . . . . 1 1 1 . . . 1 1 1 1 . 1 1 1 1 1 1 1 Hottest 200 | . 62 62 78 107 136 30 30 . . . . . . . . 98 7 . . . 81 65 65 45 . 113 113 50 50 50 50 200 Shots Fired 699 | . 56 44 131 48 230 4 3 . 3 . . . . . 2 5 1 . . . 12 1 6 24 . 13 31 14 16 17 6 32 Gun 206 | . 49 22 2 . 105 . . . . . . . . . . . . . . . . . . 24 . 4 . . . . . . Cannon 440 | . 7 22 129 48 111 . . . . . . . . . . 2 . . . . 2 1 6 . . 9 31 14 13 12 6 27 Launcher 27 | . . . . . 14 4 3 . . . . . . . 1 . . . . . . . . . . . . . . . . 5 Special 26 | . . . . . . . . . 3 . . . . . 1 3 1 . . . 10 . . . . . . . 3 5 . . Kinetic 385 | . 56 44 131 42 105 . . . . . . . . . . . . . . . . 1 6 . . . . . . . . . Thermal 231 | . . . . 6 111 . . . . . . . . . . 2 . . . . . . . . . 9 31 14 13 12 6 27 Explosive 31 | . . . . . . 4 3 . 3 . . . . . 2 2 . . . . 9 . . . . . . . 3 5 . . Electromagnetic 21 | . . . . . 14 . . . . . . . . . . . . . . . 2 . . . . . . . . . . 5 Entropic 28 | . . . . . . . . . . . . . . . . . . . . . . . . 24 . 4 . . . . . . Robot Hit Streak 14 | . 3 7 11 4 14 . . . . . . . . . . 3 4 . . . 8 . 8 9 . 6 13 . 2 5 . 8 Robot Miss Streak 6 | . 4 2 4 6 4 . . . . . . . . . 2 . . . . . 1 . . 2 . 2 1 . 2 1 . 2 Penetration Max 2 | . . . . . . . . . . . . . . . . . . . . . . . . 2 . . . . . . . . Secondary Targets 1 | . 1 . . . . . . . . . . . . . . . . . . . . . . . . . . . . . . . Max Gunslinging Chain 1 | . 1 . . . . . . . . . . . . . . . . . . . . . . . . . . . . . . . Shots Hit Robots 572 | . 23 27 72 21 150 7 . 3 . 4 4 . . 1 . 26 1 . 8 . 31 6 11 20 . 15 33 14 10 23 3 59 Core Hits 326 | . 11 14 36 10 62 6 . 3 . 2 . . . 1 6 11 . . 4 . 23 . 3 24 . 11 15 3 16 17 1 47 Critical Kills 5 | . 1 . . . 3 . . . . . . . . . . . . . . . . . . . . . . . . . . 1 Critical Parts Destroyed 11 | . 1 . . . . . . . . . . . . . . . . . . . 2 1 2 5 . . . . . . . . Critical Strikes 36 | . 2 1 2 1 4 . . . . . . . . . . . . . . . 4 1 3 5 . 1 1 . 4 2 1 4 Burn 1 | . . . . . 1 . . . . . . . . . . . . . . . . . . . . . . . . . . . Meltdown 3 | . . . . . 2 . . . . . . . . . . . . . . . . . . . . . . . . . . 1 Destroy 3 | . 2 . . . 1 . . . . . . . . . . . . . . . . . . . . . . . . . . . Blast 5 | . . 1 2 1 . . . . . . . . . . . . . . . . . . 1 . . . . . . . . . Smash 5 | . . . . . . . . . . . . . . . . . . . . . 2 1 2 . . . . . . . . . Sever 7 | . . . . . . . . . . . . . . . . . . . . . 2 . . . . . . . 1 1 1 2 Impale 7 | . . . . . . . . . . . . . . . . . . . . . . . . . . 1 1 . 3 1 . 1 Detonate 5 | . . . . . . . . . . . . . . . . . . . . . . . . 5 . . . . . . . . Melee Attacks 595 | . . . . 14 1 28 5 5 34 7 16 . 1 6 . 59 3 2 8 5 57 13 5 3 1 43 47 63 20 40 17 92 Thermal 2 | . . . . . . . . . . . . . . . . . . . . . . . . . . 2 . . . . . . Impact 30 | . . . . . . . . . . . . . . . . . . . . . 10 13 5 2 . . . . . . . . Slashing 409 | . . . . 14 1 28 5 5 34 7 16 . 1 6 . 59 3 2 8 5 47 . . . . 1 14 30 1 33 17 72 Piercing 153 | . . . . . . . . . . . . . . . . . . . . . . . . 1 1 40 33 32 19 7 . 20 Sneak Attacks 79 | . . . . . . 2 . 1 . . 3 . . 1 . 13 . . . . 3 5 5 1 . 3 15 5 3 12 2 5 Combat Hostiles 11 | . . . . . . . . . . . . . . . . . . . . . . . . 1 . . 5 . . 2 . 3 Follow-up Attacks 12 | . . . . . . . . . . . . . . . . . . . . . . . . . . . 3 3 . . . 6 Damage Inflicted 32139 | . 359 460 1579 494 3272 340 . 223 . 267 237 . . 71 539 1977 . . 552 . 2069 569 713 2179 . 751 2316 953 1539 2934 418 7328 Guns 3086 | . 295 251 28 . 1178 . . . . . . . . . . . . . . . . . . 1208 . 126 . . . . . . Cannons 6486 | . 64 209 1551 494 1598 . . . . . . . . . . . . . . . . . 242 . . 163 531 . 83 129 . 1422 Explosions 6604 | . . . . . 496 . . . . . . . . . 539 677 . . . . 736 . . 907 . . . . 853 419 . 1977 Melee 15444 | . . . . . . 340 . 223 . 267 237 . . 71 . 1231 . . 552 . 1101 569 471 64 . 462 1785 953 533 2238 418 3929 Ramming . | . . . . . . . . . . . . . . . . . . . . . . . . . . . . . . . . . Kinetic 4257 | . 359 460 1579 434 1183 . . . . . . . . . . . . . . . . . 242 . . . . . . . . . Thermal 6315 | . . . . 60 1593 . . . . . . . . . . . . . . . . . . 813 . 163 531 . 83 129 . 2943 Explosive 3224 | . . . . . . . . . . . . . . . 539 677 . . . . 736 . . . . . . . 853 419 . . Electromagnetic 1046 | . . . . . 496 . . . . . . . . . . . . . . . . . . 94 . . . . . . . 456 Impact 1338 | . . . . . . . . . . . . . . . . . . . . . 298 569 471 . . . . . . . . . Slashing 10991 | . . . . . . 340 . 223 . 267 237 . . 71 . 1300 . . 552 . 1035 . . . . . 158 785 70 1911 418 3624 Piercing 3634 | . . . . . . . . . . . . . . . . . . . . . . . . 64 . 462 1627 168 533 475 . 305 Entropic 1334 | . . . . . . . . . . . . . . . . . . . . . . . . 1208 . 126 . . . . . . Highest Corruption 9 | . 1 1 1 1 3 . . . . . . . . . . . . . . . 8 8 8 9 9 2 2 . . . . . Average Corruption 2 | . 1 1 1 1 3 . . . . . . . . . . . . . . . 4 8 8 8 9 1 2 . . . . . Corruption Purged . | . . . . . . . . . . . . . . . . . . . . . . . . . . . . . . . . . Corruption Blocked 49 | . . . . . . . . . . . . . . . . . . . . . . . . . . . . 49 . . . . Effects 119 | . 1 7 11 10 34 . . . . . . . . . . . . . . . 12 14 6 1 6 5 12 . . . . . Message Errors 29 | . . . 5 3 9 . . . . . . . . . . . . . . . 3 1 2 . 5 . 1 . . . . . Matter Fused 32 | . 1 1 2 3 6 . . . . . . . . . . . . . . . 3 7 2 . . 2 5 . . . . . Heat Flow Errors 10 | . . 1 . 2 3 . . . . . . . . . . . . . . . . 1 . . 1 . 2 . . . . . Energy Discharges 11 | . . . 1 1 1 . . . . . . . . . . . . . . . 3 1 1 . . 2 1 . . . . . Parts Rejected 1 | . . . . . 1 . . . . . . . . . . . . . . . . . . . . . . . . . . . Data Loss (minor) 22 | . . 2 2 . 7 . . . . . . . . . . . . . . . 3 4 . 1 . . 3 . . . . . Data Loss (major) 6 | . . 1 . 1 4 . . . . . . . . . . . . . . . . . . . . . . . . . . . Misfires 4 | . . 1 1 . 2 . . . . . . . . . . . . . . . . . . . . . . . . . . . Alerts 2 | . . . . . 1 . . . . . . . . . . . . . . . . . . . . 1 . . . . . . Weapon Failures 2 | . . 1 . . . . . . . . . . . . . . . . . . . . 1 . . . . . . . . . Overload Shots . | . . . . . . . . . . . . . . . . . . . . . . . . . . . . . . . . . Overflow Damage 3351 | . . . . 11 32 12 . . . 69 57 . . . 41 372 . . 171 . 250 375 454 17 . . 246 329 188 155 146 426 Projectiles 159 | . . . . 11 20 . . . . . . . . . . . . . . . . . 71 . . . 11 . . 12 . 34 Explosions 259 | . . . . . 12 . . . . . . . . . 41 96 . . . . 17 . . 17 . . . . 68 . . 8 Melee 2933 | . . . . . . 12 . . . 69 57 . . . . 276 . . 171 . 233 375 383 . . . 235 329 120 143 146 384 Knockbacks 21 | . . . 12 3 1 . . . . . . . . . . . . . . . 4 1 . . . . . . . . . . Impact 5 | . . . . . . . . . . . . . . . . . . . . . 4 1 . . . . . . . . . . Kinetic 15 | . . . 11 3 1 . . . . . . . . . . . . . . . . . . . . . . . . . . . Secondary 1 | . . . 1 . . . . . . . . . . . . . . . . . . . . . . . . . . . . . Self-Inflicted Damage 231 | . . . . . . 31 1 . . . . . . . . . . . . . . . . . . . . . . . . 199 Shots 8 | . . . . . . 1 1 . . . . . . . . . . . . . . . . . . . . . . . . 6 Rammed . | . . . . . . . . . . . . . . . . . . . . . . . . . . . . . . . . . Targets Rammed . | . . . . . . . . . . . . . . . . . . . . . . . . . . . . . . . . . Kicked . | . . . . . . . . . . . . . . . . . . . . . . . . . . . . . . . . . Crushed . | . . . . . . . . . . . . . . . . . . . . . . . . . . . . . . . . . Highest Temperature 361 | . 67 290 321 185 361 . 4 . . . . . . . . 44 . . . . . 224 . . 240 67 246 . . . . 158 Average Temperature 76 | . 10 105 107 51 76 . 4 . . . . . . . . 9 . . . . . 123 . . 101 27 121 . . . . 65 Received Heat Transfer 2214 | . 90 69 306 110 990 . . . . . . 12 . . . 6 . . . . 51 . . 34 . . 150 27 9 90 27 243 Effects 4 | . . . 2 . 2 . . . . . . . . . . . . . . . . . . . . . . . . . . . Shutdowns 2 | . . . 1 . 1 . . . . . . . . . . . . . . . . . . . . . . . . . . . Energy Bleed 1 | . . . . . 1 . . . . . . . . . . . . . . . . . . . . . . . . . . . Matter Decay 1 | . . . 1 . . . . . . . . . . . . . . . . . . . . . . . . . . . . . Siege Activations . | . . . . . . . . . . . . . . . . . . . . . . . . . . . . . . . . . Robots Corrupted 2 | . . . . . 2 . . . . . . . . . . . . . . . . . . . . . . . . . . . Combat Hostiles 2 | . . . . . 2 . . . . . . . . . . . . . . . . . . . . . . . . . . . Parts Fried 10 | . . . . . 3 . . . . . . . . . . . . . . . . . 5 . . . . . . . . 2 Impact Corruptions 60 | . . . . . . . . . . . . . . . . . . . . . 6 11 43 . . . . . . . . . Robots Melted 3 | . . . . . 2 . . . . . . . . . . . . . . . . . . . . . . . . . . 1 Combat Hostiles 2 | . . . . . 1 . . . . . . . . . . . . . . . . . . . . . . . . . . 1 Parts Melted 13 | . . . . 3 9 . . . . . . . . . . . . . . . . . . . . . 1 . . . . . Heat Transferred 5699 | . . . . 111 2960 . . . . . . . . . . . . . . . . . . 650 . 148 481 . 74 111 . 1164 Parts Sabotaged . | . . . . . . . . . . . . . . . . . . . . . . . . . . . . . . . . . Parts Stolen . | . . . . . . . . . . . . . . . . . . . . . . . . . . . . . . . . . Parts Stripped . | . . . . . . . . . . . . . . . . . . . . . . . . . . . . . . . . . Power Chain Reactions 2 | . . . . . . . . . . . . . . . . . . . . . . . . . . . . . . . . 2 Missiles Intercepted 11 | . . . . . . . . . . . . . . . . . . . . . . . . . . . . . . . . 11 Alert | -11 -10 -10 -9 -9 -8 -7 -7 -7 -7 -6 -6 -6 -6 -6 -5 -5 -5 -5 -5 -4 -4 -4 -4 -4 -3 -3 -3 -2 -2 -2 -1 -1 ------- Run | Scr Mat Min Mat Min Mat Fac Low Low Zio Pro Fac Low Low Dat Pro Fac Upp Upp Zhi Pro Fac Upp Upp War Pro Res Tes Res Qua Sec Acc Com Peak Influence 1865 | . 286 130 439 402 277 562 . . . . 124 . . . . 574 . . . . 653 . . . . 274 361 336 457 790 990 1865 Initial 620 | . . 39 6 121 59 53 . . . . . . . . . 69 . . . . 9 . . . . 33 78 122 99 24 362 620 Average 255 | . 125 69 243 248 145 355 . . . . 37 . . . . 198 . . . . 290 . . . . 123 199 140 213 510 646 1158 Maximum Alert Level 5 | . 1 . 2 2 1 2 . . . . . . . . . 2 . . . . 2 . . . . 1 1 1 2 3 3 5 Low Security (%) 56 | 100 68 100 48 27 66 11 . . . . 100 . . . . 62 . . . . 41 . . . . 78 48 92 55 15 . . Level 1 27 | . 31 . 39 71 33 47 . . . . . . . . . 21 . . . . 35 . . . . 21 51 7 37 12 7 . Level 2 9 | . . . 12 . . 41 . . . . . . . . . 15 . . . . 22 . . . . . . . 7 49 70 12 Level 3 3 | . . . . . . . . . . . . . . . . . . . . . . . . . . . . . . 22 21 40 Level 4 . | . . . . . . . . . . . . . . . . . . . . . . . . . . . . . . . . 11 Level 5 1 | . . . . . . . . . . . . . . . . . . . . . . . . . . . . . . . . 20 High Security 1 | . . . . . . . . . . . . . . . . . . . . . . . . . . . . . . . . 16 Max Security . | . . . . . . . . . . . . . . . . . . . . . . . . . . . . . . . . . Squads Dispatched 46 | . 1 . 3 . 4 1 . . . . 4 . . . . 3 . . . . 5 . . . . 3 2 1 5 3 3 8 Investigation 13 | . . . 1 . 1 1 . . . . 2 . . . . 1 . . . . 1 . . . . 1 2 . 1 . 1 1 Extermination 7 | . . . . . . . . . . . . . . . . 1 . . . . 1 . . . . 1 . . 2 1 . 1 Reinforcement 14 | . 1 . 2 . 3 . . . . . 2 . . . . 1 . . . . 1 . . . . 1 . 1 2 . . . Assault 9 | . . . . . . . . . . . . . . . . . . . . . . . . . . . . . . 1 2 6 Garrison 3 | . . . . . . . . . . . . . . . . . . . . . 2 . . . . . . . . 1 . . Intercept . | . . . . . . . . . . . . . . . . . . . . . . . . . . . . . . . . . Searches Triggered 1 | . . . . . . . . . . . . . . . . . . . . . . . . . . . . . . . . 1 Construction Impeded 1 | . . . 1 . . . . . . . . . . . . . . . . . . . . . . . . . . . . . Haulers Reinforced 2 | . . . . . . . . . . . . . . . . 1 . . . . . . . . . . . 1 . . . . Active Scanning Responses . | . . . . . . . . . . . . . . . . . . . . . . . . . . . . . . . . . Cargo Convoy Interrupts . | . . . . . . . . . . . . . . . . . . . . . . . . . . . . . . . . . Stealth | -11 -10 -10 -9 -9 -8 -7 -7 -7 -7 -6 -6 -6 -6 -6 -5 -5 -5 -5 -5 -4 -4 -4 -4 -4 -3 -3 -3 -2 -2 -2 -1 -1 --------- Run | Scr Mat Min Mat Min Mat Fac Low Low Zio Pro Fac Low Low Dat Pro Fac Upp Upp Zhi Pro Fac Upp Upp War Pro Res Tes Res Qua Sec Acc Com Distress Signals 20 | . . . 4 . 5 . . . . . . . . . . 1 . . . . 2 . . 1 . . 1 4 . 1 1 . Communications Jammed 57 | . . . . . . . . . . . . . . . . . . . . . . . . . . . 4 . 13 5 9 26 Distress Signals 56 | . . . . . . . . . . . . . . . . . . . . . . . . . . . 3 . 13 5 9 26 Times Spotted 517 | . 15 16 41 15 60 10 . . . . 8 2 3 4 5 26 5 2 . 1 46 1 7 31 4 16 17 25 10 36 39 72 Peak Tracking Total 17 | . 3 17 5 4 6 4 . . . . 4 2 3 4 5 7 5 2 . 1 11 1 4 9 3 4 3 6 3 7 8 9 Tactical Retreats 47 | . 1 . 2 2 2 . . . . . 2 . . . . 6 1 1 . 1 7 1 1 . 2 5 3 8 1 1 . . Traps | -11 -10 -10 -9 -9 -8 -7 -7 -7 -7 -6 -6 -6 -6 -6 -5 -5 -5 -5 -5 -4 -4 -4 -4 -4 -3 -3 -3 -2 -2 -2 -1 -1 ------- Run | Scr Mat Min Mat Min Mat Fac Low Low Zio Pro Fac Low Low Dat Pro Fac Upp Upp Zhi Pro Fac Upp Upp War Pro Res Tes Res Qua Sec Acc Com Traps Triggered 13 | . 2 . 2 . . 1 . . . . 2 . . . . 1 . . . . . . . . . 2 1 . . 1 . 1 Indirectly . | . . . . . . . . . . . . . . . . . . . . . . . . . . . . . . . . . Trap Hack Attempts . | . . . . . . . . . . . . . . . . . . . . . . . . . . . . . . . . . Triggered . | . . . . . . . . . . . . . . . . . . . . . . . . . . . . . . . . . Disarmed . | . . . . . . . . . . . . . . . . . . . . . . . . . . . . . . . . . Reprogrammed . | . . . . . . . . . . . . . . . . . . . . . . . . . . . . . . . . . Reused . | . . . . . . . . . . . . . . . . . . . . . . . . . . . . . . . . . Traps Extracted . | . . . . . . . . . . . . . . . . . . . . . . . . . . . . . . . . . Installed . | . . . . . . . . . . . . . . . . . . . . . . . . . . . . . . . . . Triggered 22 | . . . . . 1 . . 2 . . . . . . 1 . . 2 . . . 1 . 15 . . . . . . . . Machines | -11 -10 -10 -9 -9 -8 -7 -7 -7 -7 -6 -6 -6 -6 -6 -5 -5 -5 -5 -5 -4 -4 -4 -4 -4 -3 -3 -3 -2 -2 -2 -1 -1 ---------- Run | Scr Mat Min Mat Min Mat Fac Low Low Zio Pro Fac Low Low Dat Pro Fac Upp Upp Zhi Pro Fac Upp Upp War Pro Res Tes Res Qua Sec Acc Com Machines Disabled 62 | . . 1 3 1 6 3 1 . 1 . . . . 1 . 4 . . . . 4 . . 2 . 1 7 . 5 9 3 10 Max in Single Turn 2 | . . 1 1 1 1 1 1 . 1 . . . . 1 . 1 . . . . 1 . . 1 . 1 1 . 1 1 1 2 Garrison Access 8 | . . . . . 1 1 . . . . . . . . . . . . . . . . . . . . 1 1 1 1 2 . Phase Generator 1 | . . . . . . . . . . . . . . . . . . . . . . . . . . . . . . . . 1 Machines Sabotaged . | . . . . . . . . . . . . . . . . . . . . . . . . . . . . . . . . . Garrisons Compromised . | . . . . . . . . . . . . . . . . . . . . . . . . . . . . . . . . . Overloaded Fab Kills . | . . . . . . . . . . . . . . . . . . . . . . . . . . . . . . . . . Hacking | -11 -10 -10 -9 -9 -8 -7 -7 -7 -7 -6 -6 -6 -6 -6 -5 -5 -5 -5 -5 -4 -4 -4 -4 -4 -3 -3 -3 -2 -2 -2 -1 -1 --------- Run | Scr Mat Min Mat Min Mat Fac Low Low Zio Pro Fac Low Low Dat Pro Fac Upp Upp Zhi Pro Fac Upp Upp War Pro Res Tes Res Qua Sec Acc Com Machines Accessed 130 | . 3 1 9 1 9 14 . . . . 4 . . 4 . 7 . . 6 . 8 . . 3 . 9 11 3 13 8 9 8 Terminals 83 | . 3 . 8 1 6 7 . . . . 3 . . . . 4 . . . . 5 . . . . 7 7 2 10 7 6 7 Fabricators 7 | . . . . . . 4 . . . . . . . . . 1 . . . . . . . . . 1 1 . . . . . Repair Stations 6 | . . . . . . 1 . . . . . . . . . . . . . . 1 . . . . . 2 . 1 . . 1 Recycling Units 5 | . . . . . 2 . . . . . 1 . . . . 1 . . . . . . . . . . . . . . 1 . Scanalyzers 5 | . . . 1 . . 1 . . . . . . . . . . . . . . 1 . . . . 1 . . 1 . . . Garrison Access 10 | . . . . . 1 1 . . . . . . . . . 1 . . . . 1 . . . . . 1 1 1 1 2 . Total Hacks 427 | . 7 1 26 7 27 27 . . . . 15 . . 25 . 30 . . 28 . 36 . . 8 . 52 43 7 43 15 15 15 Successful 260 | . 1 1 11 5 17 14 . . . . 2 . . 25 . 16 . . 28 . 19 . . 8 . 32 29 3 31 9 4 5 Failed 166 | . 6 . 15 1 10 13 . . . . 13 . . . . 14 . . . . 17 . . . . 20 14 4 12 6 11 10 Catastrophic 26 | . 1 . 3 . 1 2 . . . . 4 . . . . . . . . . 2 . . . . 3 3 . 1 1 3 2 Database Lockouts 1 | . . . . 1 . . . . . . . . . . . . . . . . . . . . . . . . . . . . Manual 223 | . 4 . 21 7 15 14 . . . . 11 . . . . 15 . . . . 20 . . 1 . 41 27 4 22 9 5 7 Terminals 280 | . 7 . 24 7 18 14 . . . . 9 . . . . 20 . . . . 24 . . . . 46 34 5 36 13 10 13 Fabricators 20 | . . . . . . 7 . . . . . . . . . 4 . . . . . . . . . 5 4 . . . . . Repair Stations 16 | . . . . . . 2 . . . . . . . . . . . . . . 3 . . . . . 4 . 5 . . 2 Recycling Units 19 | . . . . . 8 . . . . . 6 . . . . 4 . . . . . . . . . . . . . . 1 . Scanalyzers 13 | . . . 2 . . 2 . . . . . . . . . . . . . . 7 . . . . 1 . . 1 . . . Garrison Access 17 | . . . . . 1 2 . . . . . . . . . 2 . . . . 2 . . . . . 1 2 1 2 4 . Terminal Hacks 153 | . 1 1 7 4 7 3 . . . . 1 . . 25 . 4 . . 28 . 7 . . 8 . 16 12 1 17 6 4 1 Record 27 | . . . . . . . . . . . . . . 7 . . . . 16 . . . . 2 . . . . 2 . . . Part Schematic 21 | . . . . . . . . . . . . . . 10 . 1 . . 4 . 2 . . . . 3 1 . . . . . Robot Schematic 5 | . . . . . . . . . . . . . . 5 . . . . . . . . . . . . . . . . . . Robot Analysis 5 | . . . . 1 . . . . . . . . . . . . . . 4 . . . . . . . . . . . . . Prototype ID Bank 12 | . . . . . . . . . . . . . . 3 . . . . 4 . . . . 5 . . . . . . . . Open Door 10 | . . 1 . . . . . . . . . . . . . . . . . . . . . 1 . . 1 . . 4 3 . Open DSF 1 | . . . . . . 1 . . . . . . . . . . . . . . . . . . . . . . . . . . Level Access Points 2 | . . . . 1 . . . . . . . . . . . . . . . . . . . . . . 1 . . . . . Branch Access Points 8 | . . . 1 . 1 1 . . . . . . . . . 1 . . . . 1 . . . . 1 . . 1 . 1 . Terminal Index 3 | . 1 . . . . . . . . . . . . . . 1 . . . . . . . . . 1 . . . . . . Fabricator Index 1 | . . . . . . . . . . . . . . . . . . . . . . . . . . 1 . . . . . . Recycling Unit Index 2 | . . . . . 1 . . . . . . . . . . . . . . . . . . . . . 1 . . . . . Alert Level 8 | . . . 1 . 1 . . . . . . . . . . . . . . . . . . . . 2 1 . 2 . . 1 Unreport Threat 10 | . . . 1 . 2 . . . . . . . . . . . . . . . 1 . . . . 1 1 1 3 . . . Locate Traps 12 | . . . 1 1 . . . . . . 1 . . . . . . . . . 2 . . . . 2 2 . 3 . . . Dispatch Records 1 | . . . . . . . . . . . . . . . . . . . . . . . . . . . 1 . . . . . Patrol Status 2 | . . . . . . . . . . . . . . . . . . . . . . . . . . 1 1 . . . . . Recall Investigation 1 | . . . . . . . . . . . . . . . . . . . . . . . . . . 1 . . . . . . Recall Extermination 4 | . . . . . . . . . . . . . . . . 1 . . . . . . . . . 1 . . 2 . . . Hauler Manifests 3 | . . . 1 . 1 . . . . . . . . . . . . . . . . . . . . . 1 . . . . . Zone Layout 15 | . . . 2 1 1 1 . . . . . . . . . . . . . . 1 . . . . 2 1 . 4 2 . . Fabricator Hacks 10 | . . . . . . 2 . . . . . . . . . 2 . . . . . . . . . 4 2 . . . . . Network Status 3 | . . . . . . 2 . . . . . . . . . 1 . . . . . . . . . . . . . . . . Load Schematic 4 | . . . . . . . . . . . . . . . . 1 . . . . . . . . . 2 1 . . . . . Build 3 | . . . . . . . . . . . . . . . . . . . . . . . . . . 2 1 . . . . . Repair Station Hacks 10 | . . . . . . 1 . . . . . . . . . . . . . . 2 . . . . . 2 . 4 . . 1 Scan Component 5 | . . . . . . . . . . . . . . . . . . . . . 1 . . . . . 1 . 3 . . . Repair 3 | . . . . . . . . . . . . . . . . . . . . . 1 . . . . . 1 . 1 . . . Refit 2 | . . . . . . 1 . . . . . . . . . . . . . . . . . . . . . . . . . 1 Recycling Unit Hacks 5 | . . . . . 4 . . . . . . . . . . 1 . . . . . . . . . . . . . . . . Retrieve Components 5 | . . . . . 4 . . . . . . . . . . 1 . . . . . . . . . . . . . . . . Scanalyzer 9 | . . . 1 . . 1 . . . . . . . . . . . . . . 5 . . . . 1 . . 1 . . . Insert Component 6 | . . . 1 . . 1 . . . . . . . . . . . . . . 2 . . . . 1 . . 1 . . . Analyze 3 | . . . . . . . . . . . . . . . . . . . . . 3 . . . . . . . . . . . Garrison Access Hacks 5 | . . . . . 1 . . . . . . . . . . . . . . . . . . . . . 1 1 1 1 . . Seal Access 5 | . . . . . 1 . . . . . . . . . . . . . . . . . . . . . 1 1 1 1 . . Unauthorized Hacks 68 | . . . 3 1 5 7 . . . . 1 . . . . 9 . . . . 5 . . . . 11 12 1 8 2 . 3 Terminals 52 | . . . 3 1 5 2 . . . . . . . . . 4 . . . . 4 . . . . 10 9 1 8 2 . 3 Track 29 | . . . 3 1 3 1 . . . . . . . . . 1 . . . . 2 . . . . 6 4 . 5 1 . 2 Assimilate 2 | . . . . . . . . . . . . . . . . . . . . . . . . . . . 1 . 1 . . . Botnet 18 | . . . . . 2 1 . . . . . . . . . 2 . . . . 1 . . . . 3 4 1 2 1 . 1 Disrupt 2 | . . . . . . . . . . . . . . . . 1 . . . . 1 . . . . . . . . . . . Operators 1 | . . . . . . . . . . . . . . . . . . . . . . . . . . 1 . . . . . . Fabricators 8 | . . . . . . 3 . . . . . . . . . 2 . . . . . . . . . 1 2 . . . . . Prioritize 2 | . . . . . . . . . . . . . . . . . . . . . . . . . . 1 1 . . . . . Fabnet 5 | . . . . . . 3 . . . . . . . . . 1 . . . . . . . . . . 1 . . . . . Recompile 1 | . . . . . . . . . . . . . . . . 1 . . . . . . . . . . . . . . . . Repair Stations 2 | . . . . . . 1 . . . . . . . . . . . . . . . . . . . . 1 . . . . . Mechanics 2 | . . . . . . 1 . . . . . . . . . . . . . . . . . . . . 1 . . . . . Recycling Units 3 | . . . . . . . . . . . 1 . . . . 2 . . . . . . . . . . . . . . . . Monitor 1 | . . . . . . . . . . . 1 . . . . . . . . . . . . . . . . . . . . . Recyclers 1 | . . . . . . . . . . . . . . . . 1 . . . . . . . . . . . . . . . . Mask 1 | . . . . . . . . . . . . . . . . 1 . . . . . . . . . . . . . . . . Scanalyzers . | . . . . . . . . . . . . . . . . . . . . . . . . . . . . . . . . . Garrison Access 3 | . . . . . . 1 . . . . . . . . . 1 . . . . 1 . . . . . . . . . . . Reprogram 2 | . . . . . . . . . . . . . . . . 1 . . . . 1 . . . . . . . . . . . Jam 1 | . . . . . . 1 . . . . . . . . . . . . . . . . . . . . . . . . . . Data Cores Recovered 1 | . . . . . . . . . . . . . . . . . . . . . . . . . . . . . . 1 . . Used . | . . . . . . . . . . . . . . . . . . . . . . . . . . . . . . . . . Hacking Detections 93 | . 3 . 9 . 4 10 . . . . 4 . . . . 7 . . . . 8 . . . . 8 7 2 10 5 8 8 Full Trace Events 9 | . . . . . 1 . . . . . 2 . . . . . . . . . . . . . . 1 2 . 1 . 1 1 Feedback Events 5 | . . . . . . . . . . . 1 . . . . . . . . . . . . . . . 1 . . . 1 2 Corruption 1 | . . . . . . . . . . . . . . . . . . . . . . . . . . . . . . . . 1 Hackware Fried 4 | . . . . . . . . . . . 1 . . . . . . . . . . . . . . . 1 . . . 1 1 Feedback Blocked . | . . . . . . . . . . . . . . . . . . . . . . . . . . . . . . . . . Robot Schematics Acquired 11 | . . . . . . . . . 3 . . . . 5 . . . . . . . . . . . . 1 . 1 1 . . Robots Built . | . . . . . . . . . . . . . . . . . . . . . . . . . . . . . . . . . Authchips . | . . . . . . . . . . . . . . . . . . . . . . . . . . . . . . . . . Time . | . . . . . . . . . . . . . . . . . . . . . . . . . . . . . . . . . Total Robot Build Rating . | . . . . . . . . . . . . . . . . . . . . . . . . . . . . . . . . . Part Schematics Acquired 46 | . . . . . . . . . 16 . . . . 10 . 1 . . 4 . 2 . . . . 3 5 . 2 3 . . Parts Built 3 | . . . . . . . . . . . . . . . . . . . . . . . . . . 2 1 . . . . . Authchips 1 | . . . . . . . . . . . . . . . . . . . . . . . . . . 1 . . . . . . Time 95 | . . . . . . . . . . . . . . . . . . . . . . . . . . 57 38 . . . . . Total Part Build Rating 18 | . . . . . . . . . . . . . . . . . . . . . . . . . . 13 5 . . . . . Parts Repaired 3 | . . . . . . . . . . . . . . . . . . . . . 1 . . . . . 1 . 1 . . . Time 167 | . . . . . . . . . . . . . . . . . . . . . 26 . . . . . 33 . 108 . . . Parts Recycled . | . . . . . . . . . . . . . . . . . . . . . . . . . . . . . . . . . Recycled Matter . | . . . . . . . . . . . . . . . . . . . . . . . . . . . . . . . . . Retrieved Matter . | . . . . . . . . . . . . . . . . . . . . . . . . . . . . . . . . . Retrieved Components 27 | . . . . . 25 . . . . . . . . . . 2 . . . . . . . . . . . . . . . . Parts Scanalyzed 1 | . . . . . . . . . . . . . . . . . . . . . 1 . . . . . . . . . . . Part Schematics Acquired . | . . . . . . . . . . . . . . . . . . . . . . . . . . . . . . . . . Parts Damaged . | . . . . . . . . . . . . . . . . . . . . . . . . . . . . . . . . . Bothacking | -11 -10 -10 -9 -9 -8 -7 -7 -7 -7 -6 -6 -6 -6 -6 -5 -5 -5 -5 -5 -4 -4 -4 -4 -4 -3 -3 -3 -2 -2 -2 -1 -1 ------------ Run | Scr Mat Min Mat Min Mat Fac Low Low Zio Pro Fac Low Low Dat Pro Fac Upp Upp Zhi Pro Fac Upp Upp War Pro Res Tes Res Qua Sec Acc Com Used RIF Installer . | . . . . . . . . . . . . . . . . . . . . . . . . . . . . . . . . . Robots Hacked 15 | . . . . . . . . . . . . 2 . . . 2 1 . . . . . . . . . . 6 . 3 . 1 Non-combat . | . . . . . . . . . . . . . . . . . . . . . . . . . . . . . . . . . Combat 12 | . . . . . . . . . . . . 2 . . . 1 . . . . . . . . . . . 5 . 3 . 1 Robot Hacks Applied . | . . . . . . . . . . . . . . . . . . . . . . . . . . . . . . . . . Manual 3 | . . . . . . . . . . . . . . . . 1 1 . . . . . . . . . . 1 . . . . Relay Couplers Released 7 | . . . . . . . . . . . . . . . . . . . . . . . . . . . . 3 . 1 3 . Machine Destruction 7 | . . . . . . . . . . . . . . . . . . . . . . . . . . . . 3 . 1 3 . Fabnet Peak Effective % 9 | . . . . . . . . . . 9 9 9 9 9 3 3 3 3 3 . . . . . . . . 3 3 3 1 1 Autooverrided 12 | . . . . . . . . . . . . 2 . . . 1 . . . . . . . . . . . 5 . 3 . 1 Robots Rewired 5 | . . . . . . . . . . . . . . . . . . . . . . . . 5 . . . . . . . . Allies Hacked 1 | . . . . . . . . . . 1 . . . . . . . . . . . . . . . . . . . . . . Hacks Repelled 2 | . . . . . . . . . . . . . . . . . . . . . . . . 2 . . . . . . . . Allies | -11 -10 -10 -9 -9 -8 -7 -7 -7 -7 -6 -6 -6 -6 -6 -5 -5 -5 -5 -5 -4 -4 -4 -4 -4 -3 -3 -3 -2 -2 -2 -1 -1 -------- Run | Scr Mat Min Mat Min Mat Fac Low Low Zio Pro Fac Low Low Dat Pro Fac Upp Upp Zhi Pro Fac Upp Upp War Pro Res Tes Res Qua Sec Acc Com Total Allies 43 | . . 1 . 3 . . . . 6 . . 2 . . . 2 1 . . . 1 . . 5 . . 1 10 1 3 . 7 Largest Group 6 | . . 1 . 3 2 . . . 6 6 3 2 . . . 2 1 . . . 1 . . 5 1 . 1 5 1 2 . 6 Highest-Rated Group 737 | . . 31 . 40 24 . . . 163 163 90 59 . . . 114 85 . . . 49 . . 284 65 . 10 737 45 91 . 84 Highest-Rated Ally 362 | . . 31 . 16 16 . . . 31 31 31 30 . . . 85 85 . . . 49 . . 65 65 . 10 362 45 64 . 69 Total Orders 5 | . . . . . . . . . . . . . . . . . . . . . . . . . . . . 5 . . . . EXPLORE 5 | . . . . . . . . . . . . . . . . . . . . . . . . . . . . 5 . . . . Ally Attacks 336 | . . 4 . 23 10 . . . . 19 7 9 . . . 24 6 . . . 3 . . 20 . . . 121 . . . 90 Total Damage 11338 | . . 64 . 218 125 . . . . 295 103 218 . . . 1162 211 . . . 25 . . 1010 . . . 6000 . . . 1907 Kills 39 | . . 2 . 3 1 . . . . 1 . 1 . . . 9 2 . . . . . . 7 . . . 12 . . . 1 Allies Corrupted 3 | . . . . . . . . . . . 1 . . . . 1 . . . . . . . . . . . 1 . . . . Allies Melted 1 | . . . . . . . . . . . . 1 . . . . . . . . . . . . . . . . . . . . Intel | -11 -10 -10 -9 -9 -8 -7 -7 -7 -7 -6 -6 -6 -6 -6 -5 -5 -5 -5 -5 -4 -4 -4 -4 -4 -3 -3 -3 -2 -2 -2 -1 -1 ------- Run | Scr Mat Min Mat Min Mat Fac Low Low Zio Pro Fac Low Low Dat Pro Fac Upp Upp Zhi Pro Fac Upp Upp War Pro Res Tes Res Qua Sec Acc Com Robot Analysis Total 5 | . . . . 1 . . . . . . . . . . . . . . 4 . . . . . . . . . . . . . Derelict Logs Recovered 21 | . . 2 . 1 . . 2 1 . 3 . 2 2 . 2 . . 1 . 3 . . 2 . . . . . . . . . Drone Launches 6 | . . . . . . . . . . . . . . . . . . . . . . . . . . . . 6 . . . . Drone Recoveries 3 | . . . . . . . . . . . . . . . . . . . . . . . . . . . . 3 . . . . Exploration | -11 -10 -10 -9 -9 -8 -7 -7 -7 -7 -6 -6 -6 -6 -6 -5 -5 -5 -5 -5 -4 -4 -4 -4 -4 -3 -3 -3 -2 -2 -2 -1 -1 ------------- Run | Scr Mat Min Mat Min Mat Fac Low Low Zio Pro Fac Low Low Dat Pro Fac Upp Upp Zhi Pro Fac Upp Upp War Pro Res Tes Res Qua Sec Acc Com Turns Passed 18169 | 69 469 1208 1577 890 3066 501 195 294 670 468 235 128 130 90 141 828 134 154 120 174 670 408 144 670 204 728 664 1041 413 551 224 911 Spaces Moved 28230 | 55 270 699 877 538 1116 1252 534 602 1338 779 589 437 389 177 432 1536 393 448 215 510 1468 516 424 903 748 1713 1233 3406 1018 1133 748 1734 Core 15 | 4 . . . . . . . . . . . . . . . . . . . . . 2 . 9 . . . . . . . . Treads 813 | 5 . . . . 808 . . . . . . . . . . . . . . . . . . . . . . . . . . . Legs 119 | . . . . . 119 . . . . . . . . . . . . . . . . . . . . . . . . . . . Wheels 2619 | 46 270 699 877 538 189 . . . . . . . . . . . . . . . . . . . . . . . . . . . Hover . | . . . . . . . . . . . . . . . . . . . . . . . . . . . . . . . . . Flight 24248 | . . . . . . 1252 534 602 1338 779 589 437 389 177 432 1536 393 448 215 510 1468 514 424 894 748 1713 1233 3406 1018 1133 564 1502 Fastest Speed 14 | 50 100 135 140 145 145 29 29 29 29 29 27 29 27 27 29 25 27 25 22 22 22 22 22 21 15 20 19 21 18 20 14 18 Average Speed 43 | 101 127 158 146 145 230 29 29 29 29 29 28 29 28 27 29 28 27 30 25 22 22 23 22 35 20 24 26 21 21 20 18 18 Slowest Speed 500 | 160 175 215 155 145 480 29 29 29 99 29 29 29 29 29 29 29 27 101 27 22 26 500 22 500 21 102 106 26 99 89 22 108 Overloaded Moves 95 | . . . . . . . . . . . . . . . . . . . . . . . . . 16 . 7 . 67 . 5 . Propulsion Burnouts . | . . . . . . . . . . . . . . . . . . . . . . . . . . . . . . . . . Robots Hopped 84 | . . . . . . 4 . . . . 3 . . 1 . 7 . . . . 12 . . 3 . 4 8 14 4 9 8 7 Cave-ins Triggered . | . . . . . . . . . . . . . . . . . . . . . . . . . . . . . . . . . Microwarps 42 | . . . . . . . . . . . . . . . . . . . . . . . . . . . . . . . 21 21 Exploration Rate (%) 64 | 3 47 98 86 98 78 42 74 70 90 77 19 76 63 81 65 35 57 66 62 63 32 58 56 93 84 37 92 68 86 70 25 66 Regions Visited 32 Branch Regions 22 Pre-discovered Areas 11 | . . 1 . . . . . . 1 . . . 1 1 . . . 1 3 3 . . . . . . . . . . . . Known Exits Taken 29 | . . . 1 1 1 1 1 1 1 1 1 1 1 1 1 1 1 1 1 1 1 1 1 1 1 1 1 1 1 1 1 . Unknown Exits Taken 3 | 1 1 1 . . . . . . . . . . . . . . . . . . . . . . . . . . . . . . Scrap Searched 32 | . . 1 . 3 . . 3 3 4 3 . 2 2 . 1 . 1 1 . 4 . 1 2 . 1 . . . . . . . Spaces Dug 328 | . . . 1 1 1 24 26 2 16 3 10 . 1 1 . 31 3 2 . 5 22 6 . 1 1 37 26 45 10 18 14 21 Terrain Destroyed 604 | . . 1 7 4 1 50 33 2 16 3 10 . 1 1 17 44 3 2 . 5 60 6 . 6 1 40 30 48 41 52 15 105 Melee 228 | . . . . 1 1 15 3 2 2 3 10 . 1 1 . 29 3 2 . 5 17 5 . 1 1 31 14 34 8 14 11 14 Projectile 83 | . . 1 7 3 . . . . . . . . . . 1 2 . . . . 2 1 . 5 . 9 16 14 6 5 4 7 AOE 293 | . . . . . . 35 30 . 14 . . . . . 16 13 . . . . 41 . . . . . . . 27 33 . 84 Terrain Rammed . | . . . . . . . . . . . . . . . . . . . . . . . . . . . . . . . . . Walls Destroyed . | . . . . . . . . . . . . . . . . . . . . . . . . . . . . . . . . . Machines Disabled . | . . . . . . . . . . . . . . . . . . . . . . . . . . . . . . . . . Actions | -11 -10 -10 -9 -9 -8 -7 -7 -7 -7 -6 -6 -6 -6 -6 -5 -5 -5 -5 -5 -4 -4 -4 -4 -4 -3 -3 -3 -2 -2 -2 -1 -1 --------- Run | Scr Mat Min Mat Min Mat Fac Low Low Zio Pro Fac Low Low Dat Pro Fac Upp Upp Zhi Pro Fac Upp Upp War Pro Res Tes Res Qua Sec Acc Com Total 32080 | 64 347 763 1054 585 1390 1347 562 714 1564 1009 628 437 403 209 448 1832 415 463 268 565 1695 778 459 1224 793 1938 1463 3601 1153 1347 637 1925 Wait 2142 | . 31 29 34 4 24 3 16 106 158 224 . 1 12 25 2 188 19 5 28 44 110 239 20 223 45 112 62 81 27 101 12 157 Move 27661 | 54 269 698 876 537 1115 1243 533 601 1337 778 582 436 388 174 431 1521 392 447 214 509 1445 515 423 896 747 1704 1216 3380 1009 1114 568 1509 Hop 78 | . . . . . . 4 . . . . 3 . . 1 . 7 . . . . 10 . . 3 . 4 8 11 4 9 8 6 Pick Up 201 | 4 9 6 33 . 33 7 . 1 3 . 1 . . 1 1 10 . 2 4 3 13 3 . 2 . 14 11 9 8 11 5 7 Fast Attach 211 | 6 2 2 7 1 11 4 2 . 10 . 2 . . . . 5 . 1 4 . 9 . . 16 . 9 23 14 22 21 3 37 Attach 147 | . . 2 7 1 20 12 . . . . 3 . 1 . 7 7 . 2 3 1 12 2 2 5 . 7 6 4 . 11 7 25 Detach 62 | . . 1 . 1 2 5 . . 1 . 1 . . 1 5 3 . . 1 . 5 2 2 7 . 2 4 . . 4 4 11 Swap 150 | . 3 1 5 2 14 2 1 . 5 . . . 1 . . . . 1 1 1 13 . . 2 . 8 29 18 17 5 2 19 Drop 319 | . 5 2 27 1 38 17 2 1 13 . 2 . . 1 . 9 . 3 5 2 10 3 . 16 . 16 32 21 31 14 5 43 Fire 462 | . 28 22 65 24 132 4 3 . 3 . . . . . 2 5 1 . . . 12 1 7 24 . 13 31 14 16 17 6 32 Melee 558 | . . . . 14 1 28 5 5 34 7 16 . 1 6 . 59 3 2 8 5 56 13 5 3 1 41 41 49 19 40 17 79 Ram . | . . . . . . . . . . . . . . . . . . . . . . . . . . . . . . . . . Kick . | . . . . . . . . . . . . . . . . . . . . . . . . . . . . . . . . . Crush . | . . . . . . . . . . . . . . . . . . . . . . . . . . . . . . . . . Escape Stasis 62 | . . . . . . 18 . . . . 18 . . . . 18 . . . . . . . . . 8 . . . . . . Rewire 27 | . . . . . . . . . . . . . . . . . . . . . . . . 27 . . . . . . . . Trap . | . . . . . . . . . . . . . . . . . . . . . . . . . . . . . . . . . Miscellaneous . | . . . . . . . . . . . . . . . . . . . . . . . . . . . . . . . . . Route ------- -11/Scrapyard -10/Materials -10/Mines (discovered 3 exits: *Mat x2 / [*Exi]) -9/Materials (discovered 5 exits: *Mat x3 / *Min x2) -9/Mines (discovered 3 exits: *Mat x2 / *Zio) -8/Materials (discovered 2 exits: *Fac x2) -7/Factory (discovered 4 exits: *Fac / *Sto / *Low x2) -7/Lower Caves -7/Lower Caves -7/Zion -6/Proximity Caves -6/Factory (discovered 3 exits: Fac x2 / *Low) -6/Lower Caves -6/Lower Caves (discovered 2 exits: *Fac / *Dat) -6/Data Miner -5/Proximity Caves -5/Factory (discovered 3 exits: Fac / *Upp x2) -5/Upper Caves -5/Upper Caves (discovered 2 exits: *Fac / *Zhi) -5/Zhirov -4/Proximity Caves -4/Factory (discovered 6 exits: *Res / *Upp x2 / *Ext x2 / Arm) -4/Upper Caves -4/Upper Caves -4/Warlord -3/Proximity Caves -3/Research (discovered 4 exits: *Res x2 / *Tes x2) -3/Testing -2/Research (discovered 3 exits: *Acc x2 / *Qua) -2/Quarantine (discovered 2 exits: *Acc / *Sec) -2/Section 7 -1/Access -1/Command To Fleet Rendezvous History --------- Turn | Location | Event 40 | -11/Scrapyard | Discovered new exit (range 15) 70 | -11/Scrapyard | Entered Materials 311 | -10/Materials | Build established: Mutant 429 | -10/Materials | Discovered new exit (range 14) 539 | -10/Materials | Entered Mines 544 | -10/Mines | Received a Mining Laser from a helpful Derelict 607 | -10/Mines | A weapon hastily lodged in a ceiling crevice suddenly fell to the ground 640 | -10/Mines | Assembled infested the area 842 | -10/Mines | Discovered new exit (range 5) 877 | -10/Mines | Discovered new exit (range 12) 882 | -10/Mines | Learned location of Zion (-7) 1148 | -10/Mines | Discovered new exit (range 11) 1441 | -10/Mines | Met a Derelict who couldn't figure out how to use a Trap Extractor 1747 | -10/Mines | Entered Materials 1747 | -9/Materials | Evolved 2 slots: Propulsion x1, Utility x1 1751 | -9/Materials | Discovered new exit (range 12) 2218 | -9/Materials | Discovered new exit (range 4) 2646 | -9/Materials | Discovered new exit (range 15) 2835 | -9/Materials | Discovered new exit (range 13) 3108 | -9/Materials | Discovered new exit (range 15) 3260 | -9/Materials | Identified exit to Mines 3324 | -9/Materials | Entered Mines 3337 | -9/Mines | A Derelict revealed a hidden shortcut to a safe place 3424 | -9/Mines | Received a Rocket Launcher from a helpful Derelict 3546 | -9/Mines | Identified exit to Materials 3546 | -9/Mines | Central database locked down 3628 | -9/Mines | Assisted by bots powering up and referring to "LRC-V3" 4000 | -9/Mines | Excavation squad dispatched 4000 | -9/Mines | A large section of the Mines collapsed 4214 | -9/Mines | Entered Materials 4214 | -8/Materials | Accompanied by 2 allies 4214 | -8/Materials | Evolved 2 slots: Propulsion x1, Utility x1 4382 | -8/Materials | Lost 4 parts (2n1u1w) 4705 | -8/Materials | Lost 5 parts (1p2n1u1w) 4931 | -8/Materials | Discovered new exit (range 8) 5479 | -8/Materials | Discovered new exit (range 16) 6182 | -8/Materials | Build established: Scavenger-Mutant 7280 | -8/Materials | Identified exit to Factory 7280 | -8/Materials | Entered Factory 7280 | -7/Factory | Evolved 2 slots: Utility x2 7311 | -7/Factory | Identified exit to DSF 7393 | -7/Factory | Discovered new exit (range 13) 7485 | -7/Factory | Discovered new exit (range 8) 7487 | -7/Factory | Identified exit to Storage 7513 | -7/Factory | Identified exit to Lower Caves 7539 | -7/Factory | Discovered new exit (range 17) 7544 | -7/Factory | Identified exit to Factory 7577 | -7/Factory | Build established: Scavenger-Scout 7781 | -7/Factory | Entered Lower Caves 7881 | -7/Lower Caves | Spotted B-75 Beast 7892 | -7/Lower Caves | Encountered a Warlord checkpoint 7915 | -7/Lower Caves | Learned location of 1 exit from Factory 7948 | -7/Lower Caves | Identified exit to Lower Caves 7951 | -7/Lower Caves | Acquired the password to a Derelict Tinkerer's latest research 7976 | -7/Lower Caves | Entered another Lower Caves area 8015 | -7/Lower Caves | Encountered a Warlord checkpoint 8125 | -7/Lower Caves | Learned Factory security intel 8136 | -7/Lower Caves | Discovered new exit (range 14) 8141 | -7/Lower Caves | Identified exit to Zion 8270 | -7/Lower Caves | Entered Zion 8286 | -7/Zion | Found Prototype Special Weapon 8286 | -7/Zion | Identified RU-N14's Throwing Claymores 8292 | -7/Zion | Found RU-N14's Throwing Claymores 8416 | -7/Zion | Given the Hacking Drone Bay 8420 | -7/Zion | Gained Derelict followers 8437 | -7/Zion | Found Prototype Processor 8437 | -7/Zion | Identified Exp. Terrain Scan Processor 8439 | -7/Zion | Found Prototype Processor 8439 | -7/Zion | Identified Exp. Target Analyzer 8443 | -7/Zion | Found Prototype Processor 8443 | -7/Zion | Identified Exp. Core Analyzer 8457 | -7/Zion | Found Prototype Device 8457 | -7/Zion | Identified Bomb Factory No. 2 8493 | -7/Zion | Learned location of Extension (-4) 8795 | -7/Zion | Found RU-N14's Throwing Claymores 8811 | -7/Zion | Discovered new exit (range 14) 8815 | -7/Zion | Identified exit to Proximity Caves 8940 | -7/Zion | Entered Proximity Caves 8940 | -6/Proximity Caves | Accompanied by 6 allies 9087 | -6/Proximity Caves | Received a Behemoth hack from an annoying Tinkerer 9163 | -6/Proximity Caves | Learned location of 2 exits from Factory 9180 | -6/Proximity Caves | Learned Factory interactive machine intel 9393 | -6/Proximity Caves | Discovered exit to Factory (range 7) 9408 | -6/Proximity Caves | Entered Factory 9408 | -6/Factory | Accompanied by 3 allies 9408 | -6/Factory | Evolved 2 slots: Propulsion x1, Utility x1 9409 | -6/Factory | Identified exit to Factory 9409 | -6/Factory | Identified exit to Lower Caves 9411 | -6/Factory | Loaded intel: 52 interactive machine locations 9474 | -6/Factory | Adv. System Shield fried by hacking feedback 9643 | -6/Factory | Entered Lower Caves 9676 | -6/Lower Caves | Spotted B-75 Beast 9717 | -6/Lower Caves | Encountered a Warlord checkpoint 9725 | -6/Lower Caves | Discovered new exit (range 20) 9731 | -6/Lower Caves | Identified exit to Lower Caves 9750 | -6/Lower Caves | Learned 4 Factory zone layouts 9752 | -6/Lower Caves | Learned 4 Factory zone layouts 9771 | -6/Lower Caves | Entered another Lower Caves area 9785 | -6/Lower Caves | Discovered exit to Factory (range 18) 9818 | -6/Lower Caves | Learned location of 1 exit from Factory 9876 | -6/Lower Caves | Discovered new exit (range 15) 9901 | -6/Lower Caves | Attracted the attention of an 0b10 checkpoint 9901 | -6/Lower Caves | Identified exit to Data Miner 9901 | -6/Lower Caves | Entered Data Miner 9901 | -6/Data Miner | Discovered new exit (range 6) 9903 | -6/Data Miner | Identified exit to Proximity Caves 9906 | -6/Data Miner | Met Data Miner 9914 | -6/Data Miner | Learned location of Section 7 (-2) 9914 | -6/Data Miner | Acquired the access code to Warlord's prototype stash 9919 | -6/Data Miner | Received God Mode back door access code from Data Miner 9942 | -6/Data Miner | Destroyed Data Miner 9944 | -6/Data Miner | Found Prototype Hackware 9947 | -6/Data Miner | Data Conduit disabled 9991 | -6/Data Miner | Entered Proximity Caves 10025 | -5/Proximity Caves | Spotted B-75 Beast 10054 | -5/Proximity Caves | Learned 4 Factory zone layouts 10054 | -5/Proximity Caves | Learned location of 1 exit from Factory 10119 | -5/Proximity Caves | Identified Quantum Router 10128 | -5/Proximity Caves | Discovered exit to Factory (range 12) 10132 | -5/Proximity Caves | Entered Factory 10132 | -5/Factory | Evolved 2 slots: Propulsion x1, Utility x1 10133 | -5/Factory | Identified exit to Upper Caves 10134 | -5/Factory | Identified exit to Factory 10422 | -5/Factory | Build established: Hacker-Scout 10651 | -5/Factory | Spotted B-75 Beast 10654 | -5/Factory | Befriended a Behemoth using the annoying Tinkerer's hack 10697 | -5/Factory | Local machine network offline 10960 | -5/Factory | Entered Upper Caves 10976 | -5/Upper Caves | Encountered a Warlord checkpoint 10990 | -5/Upper Caves | Spotted B-75 Beast 10991 | -5/Upper Caves | Befriended a Behemoth using the annoying Tinkerer's hack 11043 | -5/Upper Caves | Discovered new exit (range 8) 11045 | -5/Upper Caves | Identified exit to Upper Caves 11094 | -5/Upper Caves | Entered another Upper Caves area 11098 | -5/Upper Caves | Discovered exit to Factory (range 6) 11235 | -5/Upper Caves | Discovered new exit (range 17) 11240 | -5/Upper Caves | Identified exit to Zhirov 11248 | -5/Upper Caves | Entered Zhirov 11248 | -5/Zhirov | Discovered new exit (range 3) 11253 | -5/Zhirov | Met Zhirov 11261 | -5/Zhirov | Learned location of Quarantine (-2) 11261 | -5/Zhirov | Learned location of Testing (-3) 11261 | -5/Zhirov | Learned location of Command (-1) 11263 | -5/Zhirov | Zhirov requested help retrieving the SGEMP Prototype 11269 | -5/Zhirov | Found Alien Artifact 11269 | -5/Zhirov | Identified Integrated Dissipator 11269 | -5/Zhirov | Installed Integrated Dissipator, increased core heat dissipation (+20) 11331 | -5/Zhirov | Found Alien Artifact 11339 | -5/Zhirov | Identified exit to Proximity Caves 11368 | -5/Zhirov | Entered Proximity Caves 11493 | -4/Proximity Caves | Discovered exit to Factory (range 12) 11542 | -4/Proximity Caves | Entered Factory 11542 | -4/Factory | Evolved 2 slots: Utility x2 11745 | -4/Factory | Lost 3 parts (1n1u1w) 11810 | -4/Factory | Identified exit to Upper Caves 11810 | -4/Factory | Identified exit to Extension 11810 | -4/Factory | Identified exit to Armory 11881 | -4/Factory | Spotted B-86 Titan 11970 | -4/Factory | Identified Transdimensional Reconstructor 11974 | -4/Factory | Discovered new exit (range 5) 11974 | -4/Factory | Identified exit to Research 12070 | -4/Factory | Garrison activated, responded to threat 12118 | -4/Factory | Repaired Exp. Propulsion Shielding 12212 | -4/Factory | Entered Upper Caves 12247 | -4/Upper Caves | Spotted B-86 Titan 12304 | -4/Upper Caves | Encountered a Warlord checkpoint 12305 | -4/Upper Caves | Discovered new exit (range 15) 12325 | -4/Upper Caves | Identified exit to Upper Caves 12620 | -4/Upper Caves | Entered another Upper Caves area 12623 | -4/Upper Caves | Learned Research security intel 12691 | -4/Upper Caves | Discovered new exit (range 10) 12708 | -4/Upper Caves | Learned location of 1 exit from Research 12764 | -4/Upper Caves | Identified exit to Warlord 12764 | -4/Upper Caves | Entered Warlord 12777 | -4/Warlord | System corruption cleaned by Quarantine Array 12848 | -4/Warlord | Found Prototype Device 12848 | -4/Warlord | Identified Minesniffer Drone Bay 12900 | -4/Warlord | Met Warlord 12905 | -4/Warlord | Opened Warlord's prototype stash 12911 | -4/Warlord | Found Prototype Device 12911 | -4/Warlord | Identified Thermal Barrier 12925 | -4/Warlord | Warlord's base attacked by MAIN.C 12938 | -4/Warlord | Found Prototype Device 12938 | -4/Warlord | Identified Exp. Phase Shifter 13193 | -4/Warlord | Found Prototype Energy Gun 13193 | -4/Warlord | Identified Vortex Rifle 13195 | -4/Warlord | Found Prototype Energy Gun 13195 | -4/Warlord | Identified Vortex Rail 13275 | -4/Warlord | Warlord forces counterattacked 13291 | -4/Warlord | Spotted B-86 Titan 13291 | -4/Warlord | Spotted B-90 Cyclops 13307 | -4/Warlord | Spotted Executioner 13309 | -4/Warlord | Destroyed Executioner 13315 | -4/Warlord | Allies destroyed B-90 Cyclops 13350 | -4/Warlord | Spotted Striker 13388 | -4/Warlord | Destroyed 8 combat bots 13393 | -4/Warlord | Discovered new exit (range 9) 13396 | -4/Warlord | Identified exit to Proximity Caves 13425 | -4/Warlord | P-80 Master assimilated allied Sentinel 7b 13425 | -4/Warlord | P-70 Sage assimilated allied Archangel 7b 13425 | -4/Warlord | Spotted Striker 13434 | -4/Warlord | Entered Proximity Caves 13434 | -3/Proximity Caves | Accompanied by 1 ally 13636 | -3/Proximity Caves | Discovered exit to Research (range 11) 13638 | -3/Proximity Caves | Entered Research 13638 | -3/Research | Evolved 2 slots: Propulsion x1, Utility x1 13639 | -3/Research | Identified exit to Research 13724 | -3/Research | Spotted B-86 Titan 13865 | -3/Research | Identified exit to Testing 13938 | -3/Research | Build established: Wizard-Sprinter 13996 | -3/Research | Fabricated Impulse Thruster Array? 14039 | -3/Research | Fabricated Adv. Sensor Array (x1) 14077 | -3/Research | Found Prototype Slashing Weapon 14077 | -3/Research | Identified Molecular Scythe 14268 | -3/Research | Discovered exit to Research (range 14) 14335 | -3/Research | Build established: Wizard-Scout 14366 | -3/Research | Entered Testing 14457 | -3/Testing | Repaired Plasma Lance 14486 | -3/Testing | Found Exp. Signal Interpreter 14534 | -3/Testing | Found Prototype Launcher 14534 | -3/Testing | Identified Com. Tesla Bomb Launcher 14574 | -3/Testing | Found Prototype Energy Cannon 14574 | -3/Testing | Identified Imp. Potential Cannon 14617 | -3/Testing | Spotted Striker 14632 | -3/Testing | Found Prototype Energy Cannon 14632 | -3/Testing | Identified Cld. Nova Cannon 14732 | -3/Testing | Found Prototype Protection 14732 | -3/Testing | Identified Med. Regenerative Plating 14737 | -3/Testing | Found Med. Regenerative Plating 14857 | -3/Testing | Imp. Hacking Suite fried by hacking feedback 14895 | -3/Testing | Fabricated Exp. Propulsion Shielding (x1) 14933 | -3/Testing | Spotted PX-7PYYGSAB2A 14953 | -3/Testing | Destroyed PX-7PYYGSAB2A 15019 | -3/Testing | Spotted PG-DGA(K) 15020 | -3/Testing | Spotted Alpha 7 15023 | -3/Testing | Found Prototype Slashing Weapon 15023 | -3/Testing | Identified Particle Cleaver 15030 | -3/Testing | Entered Research 15030 | -2/Research | Warlord forces began assault on 0b10 15030 | -2/Research | Evolved 2 slots: Propulsion x1, Utility x1 15140 | -2/Research | Research machine network offline 15196 | -2/Research | Spotted B-90 Cyclops 15208 | -2/Research | Spotted B-90 Cyclops 15286 | -2/Research | Met up with Warlord 15311 | -2/Research | Spotted Striker 15333 | -2/Research | Spotted Striker 15334 | -2/Research | Took control of God Mode 15334 | -2/Research | Attacked by Warlord forces 15336 | -2/Research | Attacked by Warlord 15348 | -2/Research | Spotted PW-PPY(g) 15400 | -2/Research | Spotted S2-LKS(K) 15427 | -2/Research | Discovered new exit (range 11) 15435 | -2/Research | Identified exit to Access 15439 | -2/Research | Spotted Striker 15480 | -2/Research | Borebot progress halted 15488 | -2/Research | Borebot progress halted 15509 | -2/Research | Discovered exit to Access (range 12) 15600 | -2/Research | Build established: Scavenger-Ninja 15626 | -2/Research | Spotted B-90 Cyclops 15795 | -2/Research | Warlord destroyed during the assault 15812 | -2/Research | Found Antimissile System 15834 | -2/Research | Spotted Executioner 15857 | -2/Research | Spotted Striker 16008 | -2/Research | Spotted FB-8KA(H) 16049 | -2/Research | Spotted 7X-6K7(L) 16054 | -2/Research | Discovered new exit (range 7) 16055 | -2/Research | Identified exit to Quarantine 16071 | -2/Research | Entered Quarantine 16109 | -2/Quarantine | Found Alien Artifact 16109 | -2/Quarantine | Identified Core Reset Matrix 16109 | -2/Quarantine | Used Core Reset Matrix 16113 | -2/Quarantine | Detected hypermatrix surge 16113 | -2/Quarantine | Sensed 15 artifacts in vicinity 16129 | -2/Quarantine | Found Sigix Broadsword 16155 | -2/Quarantine | Found Transdimensional Reconstructor 16164 | -2/Quarantine | Found Hpw. Transdimensional Reconstructor 16217 | -2/Quarantine | Discovered exit to Access (range 12) 16284 | -2/Quarantine | Found Subatomic Replicator 16309 | -2/Quarantine | Found Prototype Processor 16309 | -2/Quarantine | Identified Spectral Analyzer 16313 | -2/Quarantine | Found Spectral Analyzer 16427 | -2/Quarantine | Scanned by Researcher 16433 | -2/Quarantine | Repaired Graviton Reactor? 16459 | -2/Quarantine | Spotted Fortress 16482 | -2/Quarantine | Discovered new exit (range 7) 16483 | -2/Quarantine | Identified exit to Section 7 16484 | -2/Quarantine | Entered Section 7 16485 | -2/Section 7 | Sensed 26 artifacts in vicinity 16533 | -2/Section 7 | Spotted S7 Guard 16558 | -2/Section 7 | Build established: Infiltrator-Ninja 16566 | -2/Section 7 | Found Integrated Thermoelectric Network 16566 | -2/Section 7 | Installed Integrated Thermoelectric Network, gained heat-energy exchange potential 16571 | -2/Section 7 | Garrison activated, responded to threat 16597 | -2/Section 7 | Spotted S7 Guard 16597 | -2/Section 7 | Found Navigation Efficiency Matrix 16597 | -2/Section 7 | Installed Navigation Efficiency Matrix, process failed with unexpected side effects 16651 | -2/Section 7 | Spotted S7 Guard 16673 | -2/Section 7 | Found Core Regenerator 16679 | -2/Section 7 | Spotted S7 Guard 16686 | -2/Section 7 | Found Core Membrane 16686 | -2/Section 7 | Installed Core Membrane, gained immunity to corruption 16706 | -2/Section 7 | Discovered exit to Access (range 10) 16723 | -2/Section 7 | Found Microwarp Drive 16731 | -2/Section 7 | Found Integrated Dissipator 16731 | -2/Section 7 | Installed Integrated Dissipator, increased core heat dissipation (+20) 16764 | -2/Section 7 | Used Core Regenerator, restored core integrity (+199) 16766 | -2/Section 7 | Found Integrity Redistributor 16771 | -2/Section 7 | Spotted Executioner 16771 | -2/Section 7 | Spotted Executioner 16779 | -2/Section 7 | Spotted B-99 Colossus 16801 | -2/Section 7 | Found Integrated Reactor 16801 | -2/Section 7 | Installed Integrated Reactor, increased core energy generation (+10) 16803 | -2/Section 7 | Found Integrated Reactor 16803 | -2/Section 7 | Installed Integrated Reactor, increased core energy generation (+10) 16814 | -2/Section 7 | Used Subatomic Replicator to replicate LRC Storage 16815 | -2/Section 7 | Found LRC Storage 16815 | -2/Section 7 | Installed LRC Storage, increased inventory capacity (+2) 16817 | -2/Section 7 | Found LRC Insulator 16817 | -2/Section 7 | Installed LRC Insulator, gained EM resistance (25) 16819 | -2/Section 7 | Installed LRC Storage, increased inventory capacity (+2) 16822 | -2/Section 7 | Found LRC Armor 16822 | -2/Section 7 | Installed LRC Armor, increased core integrity (+250) 16832 | -2/Section 7 | Found Integrated Reactor 16832 | -2/Section 7 | Installed Integrated Reactor, increased core energy generation (+10) 16869 | -2/Section 7 | Found Matter Drive 16878 | -2/Section 7 | Found Hpw. Transdimensional Reconstructor 16892 | -2/Section 7 | Build established: Alien-Ninja 16984 | -2/Section 7 | First assault squad dispatched 17035 | -2/Section 7 | Entered Access 17035 | -1/Access | Evolved 2 slots: Propulsion x1, Weapon x1 17042 | -1/Access | Identified exit to Command 17052 | -1/Access | Adv. Hacking Suite fried by hacking feedback 17181 | -1/Access | Found Antimissile System 17237 | -1/Access | Spotted B-99 Colossus 17259 | -1/Access | Entered Command 17359 | -1/Command | Found Antimissile System 17469 | -1/Command | Imp. Hacking Suite fried by hacking feedback 17474 | -1/Command | Found Unknown Piercing Weapon 17474 | -1/Command | Identified Enh. Force Lance 17476 | -1/Command | Found Unknown Protection 17476 | -1/Command | Identified Adv. Powered Armor 17509 | -1/Command | Search patrols dispatched 17636 | -1/Command | Build established: Alien-Sprinter 17736 | -1/Command | Spotted Alpha 7 17736 | -1/Command | Spotted Striker 17736 | -1/Command | Spotted Executioner 17736 | -1/Command | Spotted Executioner 17736 | -1/Command | Spotted Alpha 7 17736 | -1/Command | Spotted Striker 17736 | -1/Command | Spotted Executioner 17736 | -1/Command | Spotted Executioner 17736 | -1/Command | Spotted B-99 Colossus 17736 | -1/Command | Failed to warp due to unstable space 17736 | -1/Command | Spotted B-99 Colossus 17792 | -1/Command | First assault squad dispatched 17794 | -1/Command | Destroyed 7 combat bots 17839 | -1/Command | Phase Generator disabled 17931 | -1/Command | High security lockdown imminent 17937 | -1/Command | Used Integrity Redistributor, redistributed integrity from core (-179) 17954 | -1/Command | Spotted M Guard 17954 | -1/Command | Spotted M Guard 17954 | -1/Command | Spotted Combat Programmer 17954 | -1/Command | Spotted Combat Programmer 17955 | -1/Command | Core integrity fell below 50% 17962 | -1/Command | Destroyed Combat Programmer 17968 | -1/Command | Destroyed M Guard 17976 | -1/Command | Destroyed Combat Programmer 18001 | -1/Command | Lost 4 parts (1p3u) 18011 | -1/Command | High security lockdown engaged 18011 | -1/Command | All MAIN.C guards destroyed 18033 | -1/Command | Met MAIN.C 18033 | -1/Command | 0b10 Conduit disabled 18038 | -1/Command | Emitted hypermatrix ping 18043 | -1/Command | Assembled emerged from beneath the floor 18076 | -1/Command | MAIN.C activated Command garrisons 18079 | -1/Command | Allies destroyed MAIN.C Shell 18124 | -1/Command | Spotted B-99 Colossus 18136 | -1/Command | Core integrity fell below 20% 18155 | -1/Command | Discovered new exit (range 13) 18170 | *** | Heading to fleet! Last Messages --------------- 18141_ Imp. Q-thruster destroyed. 18141_ Lgt. Quantum Reactor destroyed. 18141_ Knocked back. 18142_ Acquired 19 matter. 18142_ Microwarped (distance 7). 18144_ Acquired Lgt. Quantum Reactor. 18145_ Triggered Alarm Trap. 18145_ Microwarped (distance 16). 18145_ An alarm sounds. 18145_ ALERT: Alarm triggered, dispatching investigation squad. 18147_ Microwarped (distance 8). 18148_ Q-thruster destroyed. 18148_ Knocked back. 18148_ Microwarped (distance 4). 18154_ Navigation matrix triggers involuntary quantum shift. 18155_ EXIT=FOUND 18160_ Navigation matrix triggers involuntary quantum shift. 18163_ Microwarped (distance 11). 18169_ Microwarp Drive destroyed. 18169_ Imp. Diametric Drive destroyed. Map ----- +----------------------------------------------------+ | ?? ########### #? #????????????? | | ???# ?? #?????????# #? "" #????????????? | | ????????? #?????????# # """" #????????????? | | ????????? ########### # """" #????????????? | | ????????? ## # / "" #????????????? | | ????????? ## # # #????????????? | | ????????? ## # # = #????????????? | | ?????????# ## # ########+### #?????????? | | ?????????# ## # #?????????? | | ?????????# ## # #?????????? | | ?????????# ## # ############ #?????????? | | ?????????# ## # #???????????????????????? | | ?????????# ## # #???????????????????????? | | ?????????# ## # #???????????????????????? | | ?###??#### ## + #???????????????????????? | | ?# ?# # # #??????????????????????## | | ?# ?# # # ?????????H?????????"" | | ?# # "T # # ?????????????#"" | | ?# # "" # # #########????????????#""" | | ?# + # # #????????????????????#""" | | ?# # [ # # #???????##########???#" | | ?# ### ### # #???????# #???#"" | | ?# ???# #?########## #???????# * #???#" | | ?# ???# #??????????# ###?????# #???# | | ?###????# #??????????#% #?????# """"#???# " | | ######## #??????????# @ #?????# """"#???# " | | % #??????????# #?????# """"#???#""" | | #??????????######?????# """"#?### | | !### #################??????????# #?# # | | ???# #?# #######????# #?# # | | ???# #?# % # ############+#### | | ???+ #?# ! # | | ???# #?# "" + | | ???" #?# """" # | | ???# #?# """" # ################### | | ???# #?# "" ## ##?????????????????# | | ???# #?# ## #??????????????????#% | | ???# #?# ## #??????????????????#### | | ???# #?# ## #?????????????????????? | | ???# #?# ## ##????????????????????? | | ???# #?###+#######+### #????????????????????? | | ???# #???# #????# T" #????????????????????? | | ??## ##??# #????# % " #########????????????? | | ??# #### #????# #? #????????????? | | ??# ########### #? ! #????????????? | | ??# #####?? ?????????????? | | ??# ##########! #?????? ?????????????? | | ####+#####??????# #??????? ??????????????? | | #??????#=== ###????? ??????????????? | | #??????#== #######/#+#????????????? | +----------------------------------------------------+ Best States ------------- Heat Dissipation 192 Energy Generation 68 Energy Capacity 1540 Matter Stores 450 Matter Capacity 450 Sight Range 24 Robot Scan Range 16 Terrain Scan Range 24 Terrain Scan Density 10 ECM Strength 2 Jamming Range 16 Power Amplification 50 Armor Coverage 600 Resistance: KI 25 Resistance: TH 25 Resistance: EM 45 Propulsion Shielding 90 Utility Shielding 90 Point Defense Rating 240 Phase Shifting 20 Evasion (%) 76 Targeting Accuracy 8 Target Analysis 10 Armor Integrity Analysis 40 Recoil Reduction 4 Force Boost 30 Offensive Hacking 38 Defensive Hacking 25 Authchip Count 1 Item Schematics ----------------- Gui. Micro-nuke Launcher | -2/Quarantine | Archive Exp. Signal Interpreter | -2/Quarantine | Archive Exp. ECM Suite | -2/Section 7 | Archive Centrium Light Armor Plating | -2/Section 7 | Archive Exp. Shock Absorption System | -2/Section 7 | Archive Robot Schematics ------------------ A-27 Freighter | -2/Quarantine | Archive T-07 Excavator | -2/Section 7 | Archive Fabricated ------------ Impulse Thruster Array | x1 | -3/Research | Authchip Adv. Sensor Array | x1 | -3/Research Exp. Propulsion Shielding | x1 | -3/Testing Alien Tech Used ----------------- Integrated Dissipator Core Reset Matrix Integrated Thermoelectric Network Navigation Efficiency Matrix Sigix Broadsword Core Membrane Core Regenerator Integrated Reactor Subatomic Replicator LRC Storage LRC Insulator LRC Armor Microwarp Drive Transdimensional Reconstructor Integrity Redistributor Achievements -------------- Artifact Hunter Godhack Woof! Challenges ------------ None Game ------ Seed ElectronExperimentalRipper Manual? 0 Play Time 07:33:55 Cumulative 220.5 hours Start 2022.04.07 @ 00:00:25 End 2022.04.12 @ 18:05:22 Sessions 2 Manual Loads 0 Difficulty Rogue Special Mode None Game No. 58 Rogue 41 Adventurer 17 Explorer 0 Win Type 2 Total 12 Types 7/0/4/1/0/0/0/0/0 Lore% 72 Gallery% 73 Achievement% 67 Wizard Run 0 Options --------- ASCII 0 Keyboard 0 Movement Arrows Keybinds 0 Fullscreen 1 Font 28/Dina Map View 72x54 Tactical HUD 1 Map Filters NONE Filters NONE Steam 1 RUN: 2b136282-b4fe-4d35-8801-bdc1ffd04675